Cogmind - Beta 16.1 @@@ ROGUE MODE // 2026.02.14 @ 16:27:55 Player: Genericgamer16 Result: Destroyed by Y-45 Defender with Heavy Assault Rifle Performance ------------- Evolutions (2) 1000 Regions Visited (5) 1000 Robots Destroyed (74) 370 Value Destroyed (2790) 2790 Prototype IDs (11) 220 Alien Tech Used (0) 0 Bonus (548) 548 TOTAL SCORE: 5928 Bonus ------- High Alert Combat Kills 107 Follower Combat Kills 241 Entered Garrisons 200 Cogmind --------- Core Integrity 0/550 Matter 285/300 Energy 137/160 System Corruption 0% Temperature Cool (9) Movement Hovering (136) Ox1 Location -8/Materials Parts ------- > --- POWER (1) -------- Light Nuclear Core > --- PROPULSION (3) --- Light Treads Improved Hover Unit Improved Hover Unit > --- UTILITY (5) ------ Improved Heat Sink Medium Storage Unit Signal Interpreter ECM Suite Hacking Suite > --- WEAPON (2) ------- Heavy Laser > --- INVENTORY (10) --- Light Ion Engine Light Nuclear Core Armored Wheel Gravmag System Improved Cooling System Core Analyzer Armor Integrity Analyzer Authchip [R/NC] Authchip [R/Combat] Relay Coupler [Hunter] (13) Peak State ------------ > --- POWER ------------ Micro Nuclear Core > --- PROPULSION ------- Gravmag System Gravmag System Gravmag System > --- UTILITY ---------- Cryofiber Web Improved Heat Sink Medium Storage Unit Signal Interpreter Hacking Suite > --- WEAPON ----------- Pulse Rifle Heavy Laser > --- INVENTORY -------- Light Ion Engine Light Ion Engine Light Nuclear Core Light Treads Armored Wheel Authchip [R/NC] Authchip [R/Combat] Relay Coupler [Hunter] Beam Rifle Light Assault Rifle [Rating: 36] Favorites ----------- Power Ion Engine Engine Ion Engine Power Core Light Nuclear Core Propulsion Light Treads Treads Light Treads Leg Aluminum Leg Wheel Subdweller Monowheel Hover Unit Gravmag System Utility Small Storage Unit Device Improved Terrain Scanner Storage Small Storage Unit Processor Signal Interpreter Hackware Hacking Suite Protection Makeshift Light Armor Plating Weapon Small Laser Energy Gun Small Laser Energy Cannon Particle Cannon Ballistic Gun Light Assault Rifle Ballistic Cannon Assault Cannon Launcher Grenade Launcher Special Weapon Flamer Build | -11 -10 -10 -8 -8 -8 ------- Run | Yrd Mat Sub Mat Gar Mat Slots Evolved 4 | . . . 4 . . Power . | . . . . . . Propulsion 1 | . . . 1 . . Utility 3 | . . . 3 . . Weapon . | . . . . . . Parts Attached 82 | 9 7 14 30 18 4 Power 14 | 2 1 3 3 4 1 Engine 7 | 2 . 3 2 . . Core 7 | . 1 . 1 4 1 Reactor . | . . . . . . Propulsion 23 | 3 1 2 8 7 2 Treads 9 | 2 . . 4 3 . Leg 3 | . 1 1 1 . . Wheel 6 | 1 . 1 3 1 . Hover 5 | . . . . 3 2 Flight . | . . . . . . Utility 21 | 2 2 2 13 1 1 Device 10 | 1 1 . 6 1 1 Storage 3 | 1 . . 2 . . Processor 2 | . . . 2 . . Hackware 1 | . . . 1 . . Protection 5 | . 1 2 2 . . Artifact . | . . . . . . Weapon 24 | 2 3 7 6 6 . Energy Gun 9 | 1 1 1 2 4 . Energy Cannon 6 | . 1 . 3 2 . Ballistic Gun 5 | 1 . 4 . . . Ballistic Cannon 1 | . . . 1 . . Launcher 1 | . 1 . . . . Special Weapon 2 | . . 2 . . . Impact Weapon . | . . . . . . Slashing Weapon . | . . . . . . Piercing Weapon . | . . . . . . Special Melee Weapon . | . . . . . . Unidentified Prototypes . | . . . . . . Parts Lost 25 | . 2 3 4 14 2 Power 3 | . . 1 . 1 1 Propulsion 9 | . 1 1 . 7 . Utility 5 | . 1 . 2 2 . Weapon 8 | . . 1 2 4 1 Highest Loss Streak 4 | . 1 2 2 4 1 To Critical Strikes . | . . . . . . Average Backups 7 | 7 7 6 8 9 9 Power 1 | 1 1 . 1 2 2 Propulsion 3 | 5 2 . 1 1 1 Utility 1 | . 2 3 3 3 6 Weapon 1 | . 1 2 2 2 . Tool/Special . | . . . . . . Unused Backups 33 | . 4 3 11 6 9 Power 7 | . . 1 2 2 2 Propulsion 5 | . 3 . 1 1 . Utility 14 | . . 2 5 1 6 Weapon 7 | . 1 . 3 2 1 Tool/Special . | . . . . . . Average Slot Usage (%) 94 | . 97 94 93 91 96 Engine 4 | . 3 6 6 . . Core 4 | . 10 3 1 8 9 Treads 8 | . 25 2 9 10 4 Leg 6 | . . 12 1 . . Wheel 9 | . . 12 13 7 4 Hover 1 | . . . . 3 18 Device 12 | . 10 8 16 16 17 Storage 12 | . 14 14 9 9 9 Processor 3 | . . . 11 9 9 Hackware 2 | . . . 1 9 9 Protection 3 | . 2 5 4 . . Energy Gun 4 | . 15 . . 8 15 Energy Cannon 5 | . 9 1 11 9 . Ballistic Gun 7 | . 1 13 2 . . Launcher 5 | . 1 11 1 . . Peak Build Rating 36 | 9 12 16 26 36 29 Average Rating 12 | 5 10 12 22 26 28 On Entrance 14 | . 9 9 13 26 28 Avg Prop Armor Cover (%) 8 | 6 8 4 13 14 16 Naked Turns . | . . . . . . Heaviest Build 43 | 13 19 21 43 31 26 Greatest Support 44 | 40 40 20 44 40 23 Greatest Overweight (x) 2 | . 1 1 2 2 2 Average Overweight (x) . | . . . 1 1 . Largest Inventory Capacity 10 | 8 8 8 10 10 10 Average Capacity 8 | 7 8 8 9 10 10 Most Carried 10 | 8 8 8 10 10 10 Average Carried 8 | 7 7 7 8 9 9 Final Capacity 10 | 8 8 8 10 10 10 Final Carried 10 | 8 7 8 10 10 10 Class Distribution -------------------- 87% | Mutant 9% | Scavenger-Mutant Dominant Class ---------------- Mutant | -10/Materials Mutant | -10/Subcaves Mutant | -8/Materials Mutant | -8/Garrison Scavenger-Mutant | -8/Materials Resources | -11 -10 -10 -8 -8 -8 ----------- Run | Yrd Mat Sub Mat Gar Mat Matter Collected 1763 | 294 125 467 662 190 25 Remotely . | . . . . . . Salvage Created 2511 | 109 456 295 956 661 34 Parts 171 | 5 17 19 62 62 6 Haulers Intercepted 1 | . . . 1 . . Recyclers Shooed 1 | . . . 1 . . Parts Field Recycled . | . . . . . . Retrieved Matter . | . . . . . . Parts Self-Destructed 4 | . . 4 . . . Prevented . | . . . . . . Parts Restored . | . . . . . . Kills | -11 -10 -10 -8 -8 -8 ------- Run | Yrd Mat Sub Mat Gar Mat Combat Hostiles Destroyed 64 | . 10 7 20 25 2 Guns 19 | . 8 1 3 5 2 Cannons 38 | . 2 1 16 19 . AOE 5 | . . 5 . . . Classes Destroyed 15 | 2 3 4 3 3 . Worker 1 | . . . 1 . . Tunneler 1 | 1 . . . . . Hauler 1 | . . . 1 . . Recycler 2 | 1 . . 1 . . Operator 1 | . 1 . . . . Watcher 4 | . 1 . 3 . . Swarmer 24 | . . 2 7 13 2 Cutter 3 | . . . . 3 . Grunt 15 | . 10 . 5 . . Sentry 10 | . . 1 7 2 . Specialist 3 | . . . . 3 . Hunter 2 | . . . 1 1 . Programmer 3 | . . . . 3 . Artisan 2 | . . 2 . . . Subdweller 4 | . . 4 . . . Best Kill Streak 9 | 1 2 2 6 9 2 Combat Bots Only 9 | . 2 2 5 9 2 Max Kills in Single Turn 2 | 1 1 1 2 1 1 Gunslinging . | . . . . . . Exploded 1 | . . 1 . . . Melee . | . . . . . . Uniques/NPCs Destroyed . | . . . . . . Combat | -11 -10 -10 -8 -8 -8 -------- Run | Yrd Mat Sub Mat Gar Mat Hostile Shots Fired 509 | . 56 42 155 235 21 Missed 121 | . 8 11 35 62 5 Hits 388 | . 48 31 120 173 16 Melee 9 | . . . . 9 . Projectile 379 | . 48 31 120 164 16 AOE 2 | . . 2 . . . Critical Strikes 12 | . . . 3 9 . Damage Taken 4986 | . 653 786 1319 2014 214 Core 798 | . 74 168 187 319 50 Absorbed by Shields 3 | . . . . 3 . Regen/Repaired (Parts) 11 | . . . 11 . . Core Remaining (%) 51 | 100 . 3 . . . Volleys Fired 254 | 8 52 60 63 66 5 Largest 2 | 2 2 2 2 2 2 Hottest 136 | 60 100 130 136 136 125 Shots Fired 452 | 12 98 88 118 128 8 Gun 205 | 12 76 44 23 42 8 Cannon 207 | . 22 5 94 86 . Launcher 37 | . . 36 1 . . Special 3 | . . 3 . . . Kinetic 100 | 4 17 39 40 . . Thermal 312 | 8 81 13 77 125 8 Explosive 37 | . . 36 1 . . Electromagnetic 3 | . . . . 3 . Robot Hit Streak 12 | 3 8 12 12 11 4 Robot Miss Streak 6 | 2 3 2 6 4 3 Penetration Max . | . . . . . . Secondary Targets . | . . . . . . Shots Hit Robots 261 | 7 60 42 72 76 4 Core Hits 118 | 4 24 21 36 30 3 Critical Kills . | . . . . . . Critical Parts Destroyed . | . . . . . . Critical Strikes 3 | . 1 . 1 . 1 Burn 2 | . 1 . . . 1 Blast 1 | . . . 1 . . Melee Attacks . | . . . . . . Impact . | . . . . . . Slashing . | . . . . . . Piercing . | . . . . . . Sneak Attacks . | . . . . . . Combat Hostiles . | . . . . . . Follow-up Attacks . | . . . . . . Damage Inflicted 5362 | 76 692 1048 1698 1774 74 Guns 1770 | 76 499 480 112 529 74 Cannons 2932 | . 193 70 1469 1200 . Explosions 568 | . . 477 46 45 . Melee . | . . . . . . Ramming 71 | . . . 71 . . Kinetic 997 | 19 95 430 453 . . Thermal 3727 | 57 597 141 1128 1730 74 Explosive 523 | . . 477 46 . . Electromagnetic 44 | . . . . 44 . Impact . | . . . . . . Slashing . | . . . . . . Piercing . | . . . . . . Highest Corruption . | . . . . . . Average Corruption . | . . . . . . Corruption Purged . | . . . . . . Corruption Blocked . | . . . . . . Overload Shots . | . . . . . . Overflow Damage 158 | . 32 9 37 80 . Projectiles 96 | . 7 . 37 52 . Explosions 62 | . 25 9 . 28 . Melee . | . . . . . . Knockbacks 5 | . . . 5 . . Impact . | . . . . . . Kinetic 5 | . . . 5 . . Secondary . | . . . . . . Self-Inflicted Damage 306 | . 63 155 30 58 . Shots 10 | . 1 8 . 1 . Rammed 20 | . 1 . 19 . . Targets Rammed 20 | . 1 . 19 . . Kicked . | . . . . . . Crushed . | . . . . . . Highest Temperature 420 | 20 420 . 199 45 9 Average Temperature 80 | 12 104 . 48 20 5 Received Heat Transfer 972 | . 327 78 270 261 36 Effects 6 | . 6 . . . . Energy Bleed 1 | . 1 . . . . Interference 3 | . 3 . . . . Matter Decay 1 | . 1 . . . . Short Circuit 1 | . 1 . . . . Siege Activations . | . . . . . . Martial Activations . | . . . . . . Shielding Activations . | . . . . . . Robots Disrupted . | . . . . . . Combat Hostiles . | . . . . . . Robots Corrupted . | . . . . . . Combat Hostiles . | . . . . . . Parts Fried . | . . . . . . Impact Corruptions . | . . . . . . Robots Melted 2 | . . . 1 1 . Combat Hostiles 2 | . . . 1 1 . Parts Melted 16 | . 3 . 2 11 . Heat Transferred 7249 | 125 1465 456 2045 2936 222 Parts Sabotaged . | . . . . . . Parts Stolen . | . . . . . . Parts Stripped . | . . . . . . Power Chain Reactions 1 | . . . . 1 . Alert | -11 -10 -10 -8 -8 -8 ------- Run | Yrd Mat Sub Mat Gar Mat Maximum Alert Level 3 | . . . . 3 2 Low Security (%) 83 | 100 100 . 100 7 . Level 1 2 | . . . . 9 29 Level 2 8 | . . . . 48 70 Level 3 5 | . . . . 34 . Level 4 . | . . . . . . Level 5 . | . . . . . . High Security . | . . . . . . Max Security . | . . . . . . Peak Influence 857 | 5 110 . 193 857 585 Initial 417 | . 3 . . 92 417 Average 117 | . 46 . 87 583 476 Influence Increases 2368 | 10 397 70 662 925 304 Destroy 0b10 Robot/C 1340 | . 200 60 400 540 140 Destroy 0b10 Robot/NC 55 | 10 10 . 30 . 5 Destroy Leader 252 | . 62 10 128 10 42 Allied During Kill 41 | . . . . 4 37 Successful Hack 72 | . 23 . 15 30 4 Disable Machine 120 | . 60 . 15 15 30 Anti-Garrison Action 250 | . . . . 250 . Destroy Structure 73 | . 42 . 14 16 1 Partial Spotted 45 | . . . . . 45 Lose Combat Pursuer 120 | . . . 60 60 . Influence Decreases 1987 | 5 382 90 519 211 780 Entered New Map 503 | . 2 10 . 51 440 Time Decay 935 | 5 360 80 380 . 110 Lost Part 210 | . 20 . 30 140 20 Lost Ally 80 | . . . . 20 60 Purge Threat 259 | . . . 109 . 150 Squads Dispatched 9 | . 4 . 1 . 4 Investigation 5 | . 3 . . . 2 Extermination . | . . . . . . Reinforcement 3 | . 1 . 1 . 1 Assault . | . . . . . . Garrison 1 | . . . . . 1 Intercept . | . . . . . . Searches Triggered . | . . . . . . Construction Impeded 1 | . . . 1 . . Haulers Reinforced . | . . . . . . Active Scanning Responses . | . . . . . . Cargo Convoy Interrupts . | . . . . . . Stealth | -11 -10 -10 -8 -8 -8 --------- Run | Yrd Mat Sub Mat Gar Mat Distress Signals 7 | . 1 . 4 . 2 Communications Jammed . | . . . . . . Distress Signals . | . . . . . . Times Spotted 107 | . 19 10 30 29 19 Peak Tracking Total 8 | . 4 2 6 8 8 Tactical Retreats 7 | . . . 3 1 3 ECM-based Alert Blocks 10 | . . . . . 10 Traps | -11 -10 -10 -8 -8 -8 ------- Run | Yrd Mat Sub Mat Gar Mat Traps Triggered 9 | . 1 . . 8 . Indirectly . | . . . . . . Trap Hack Attempts . | . . . . . . Triggered . | . . . . . . Disarmed . | . . . . . . Reprogrammed . | . . . . . . Reused . | . . . . . . Traps Extracted . | . . . . . . Installed 1 | . . . 1 . . Triggered . | . . . . . . Most Traps Carried 1 | . . 1 1 . . Machines | -11 -10 -10 -8 -8 -8 ---------- Run | Yrd Mat Sub Mat Gar Mat Machines Disabled 11 | . 4 . 1 4 2 Max in Single Turn 4 | . 4 . 1 1 1 Garrison Access 1 | . . . . . 1 Garrison Relay 3 | . . . . 3 . Machines Repaired . | . . . . . . Machines Dismantled . | . . . . . . Machines Sabotaged . | . . . . . . Overloaded Fab Kills . | . . . . . . Hacking | -11 -10 -10 -8 -8 -8 --------- Run | Yrd Mat Sub Mat Gar Mat Machines Accessed 30 | . 8 2 12 3 5 Terminals 22 | . 7 . 8 3 4 Fabricators . | . . . . . . Repair Stations 1 | . . . 1 . . Recycling Units 2 | . 1 . 1 . . Scanalyzers 1 | . . . 1 . . Garrison Access 2 | . . . 1 . 1 Total Hacks 98 | . 35 3 38 6 16 Successful 52 | . 15 3 26 3 5 Failed 45 | . 19 . 12 3 11 Catastrophic 3 | . 1 . . . 2 Database Lockouts 1 | . 1 . . . . Manual 52 | . 24 . 17 . 11 Terminals 82 | . 33 . 30 6 13 Fabricators . | . . . . . . Repair Stations 3 | . . . 3 . . Recycling Units 5 | . 2 . 3 . . Scanalyzers 1 | . . . 1 . . Garrison Access 4 | . . . 1 . 3 Terminal Hacks 34 | . 10 3 15 3 3 Record 1 | . . 1 . . . Robot Analysis 2 | . . . 2 . . Prototype ID Bank 8 | . 3 . 5 . . Open Door 2 | . . 1 . 1 . Emergency Access Points 1 | . . . . 1 . Terminal Index 2 | . 1 . 1 . . Alert Level 4 | . 1 . 2 . 1 Unreport Threat 2 | . . . 1 . 1 Locate Traps 3 | . 1 . 2 . . Surveillance Status 1 | . 1 . . . . Patrol Status 1 | . 1 . . . . Transport Status 1 | . . . 1 . . Assault Status 1 | . 1 . . . . Recall Reinforcements 1 | . . . . . 1 Hauler Manifests 2 | . 1 . 1 . . Patrol Navigation 1 | . . . . 1 . Release Object 1 | . . 1 . . . Fabricator Hacks . | . . . . . . Repair Station Hacks 2 | . . . 2 . . Scan Component 1 | . . . 1 . . Repair 1 | . . . 1 . . Recycling Unit Hacks 2 | . 1 . 1 . . Report Inventory 2 | . 1 . 1 . . Scanalyzer 1 | . . . 1 . . Retrieve Study 1 | . . . 1 . . Garrison Access Hacks 2 | . . . 1 . 1 Unlock Access 1 | . . . 1 . . Seal Access 1 | . . . . . 1 Unauthorized Hacks 11 | . 4 . 6 . 1 Terminals 10 | . 3 . 6 . 1 Track 1 | . . . 1 . . Botnet 9 | . 3 . 5 . 1 Fabricators . | . . . . . . Repair Stations . | . . . . . . Recycling Units 1 | . 1 . . . . Monitor 1 | . 1 . . . . Scanalyzers . | . . . . . . Garrison Access . | . . . . . . Data Cores Recovered . | . . . . . . Used . | . . . . . . Hacking Detections 26 | . 7 . 11 3 5 Full Trace Events 5 | . 3 . . . 2 Feedback Events . | . . . . . . Feedback Blocked . | . . . . . . Robot Schematics Acquired . | . . . . . . Robots Built . | . . . . . . Authchips . | . . . . . . Time . | . . . . . . Total Robot Build Rating . | . . . . . . Part Schematics Acquired . | . . . . . . Parts Built . | . . . . . . Authchips . | . . . . . . Time . | . . . . . . Total Part Build Rating . | . . . . . . Part Studies Acquired 1 | . . . 1 . . Parts Repaired 1 | . . . 1 . . Time 44 | . . . 44 . . Parts Recycled . | . . . . . . Recycled Matter . | . . . . . . Retrieved Matter . | . . . . . . Retrieved Components . | . . . . . . Parts Scanalyzed . | . . . . . . Part Schematics Acquired . | . . . . . . Parts Damaged . | . . . . . . Bothacking | -11 -10 -10 -8 -8 -8 ------------ Run | Yrd Mat Sub Mat Gar Mat Used RIF Installer . | . . . . . . Robots Hacked . | . . . . . . Non-combat . | . . . . . . Combat . | . . . . . . Robot Hacks Applied . | . . . . . . Relay Couplers Released 12 | . . . . 12 . Machine Destruction 12 | . . . . 12 . Fabnet Peak Effective % . | . . . . . . Robots Rewired 4 | . . . . 4 . Allies Hacked . | . . . . . . Hacks Repelled . | . . . . . . Allies | -11 -10 -10 -8 -8 -8 -------- Run | Yrd Mat Sub Mat Gar Mat Total Allies 4 | . . . . 4 . Largest Group 3 | . . . . 3 3 Highest-Rated Group 91 | . . . . 91 91 Highest-Rated Ally 40 | . . . . 40 40 Initial Warlord ECA Mod 5 | . . . . . 5 Total Orders . | . . . . . . Ally Attacks 30 | . . . . 7 23 Total Damage 776 | . . . . 222 554 Kills 8 | . . . . 2 6 Allies Corrupted . | . . . . . . Allies Melted . | . . . . . . Intel | -11 -10 -10 -8 -8 -8 ------- Run | Yrd Mat Sub Mat Gar Mat Active Infowar (turns) 4174 | 29 573 2397 952 . 223 Sensors 402 | . . . 402 . . Terrain 3233 | 29 573 2397 234 . . Machine Analysis 417 | . . . 417 . . ECM 223 | . . . . . 223 Robot Analysis Total 2 | . . . 2 . . Derelict Logs Recovered 2 | . . 2 . . . Drone Launches . | . . . . . . Drone Recoveries . | . . . . . . Exploration | -11 -10 -10 -8 -8 -8 ------------- Run | Yrd Mat Sub Mat Gar Mat Turns Passed 12940 | 5189 1008 3803 1343 1365 232 Spaces Moved 4750 | 600 481 1816 802 812 239 Core 7 | 7 . . . . . Treads 1335 | 583 440 145 71 96 . Legs 1488 | . 41 1447 . . . Wheels 1647 | 10 . 224 731 606 76 Hover 273 | . . . . 110 163 Flight . | . . . . . . Fastest Speed 50 | 50 160 110 90 52 52 Average Speed 148 | 157 162 177 116 117 87 Slowest Speed 240 | 160 190 190 240 240 136 Overloaded Moves . | . . . . . . Propulsion Burnouts . | . . . . . . Robots Hopped . | . . . . . . Potential Cave-ins . | . . . . . . Cave-ins Triggered . | . . . . . . Exploration Rate (%) 60 | 61 60 68 70 74 31 Regions Visited 5 Branch Regions 1 Pre-discovered Areas 1 | . . 1 . . . Known Exits Taken 1 | . . . 1 . . Unknown Exits Taken 3 | 1 1 1 . . . Scrap Searched 3 | . . 3 . . . Spaces Dug 14 | . . 14 . . . Terrain Destroyed 258 | . 48 192 12 6 . Melee . | . . . . . . Projectile 2 | . . . 2 . . AOE 256 | . 48 192 10 6 . Terrain Rammed . | . . . . . . Walls Destroyed . | . . . . . . Machines Disabled . | . . . . . . Actions | -11 -10 -10 -8 -8 -8 --------- Run | Yrd Mat Sub Mat Gar Mat Total 10197 | 4831 613 2300 1101 1099 253 Wait 4784 | 4203 56 368 105 51 1 Move 4745 | 599 480 1815 801 811 239 Hop . | . . . . . . Pick Up 100 | 12 7 15 40 24 2 Fast Attach 12 | 3 2 1 2 3 1 Attach 40 | 4 2 4 13 16 1 Detach 1 | . . . 1 . . Swap 52 | 2 5 20 19 3 3 Drop 73 | . 8 16 37 11 1 Fire 254 | 8 52 60 63 66 5 Melee . | . . . . . . Ram 19 | . . . 19 . . Kick . | . . . . . . Crush 1 | . 1 . . . . Escape Stasis 64 | . . . . 64 . Rewire 50 | . . . . 50 . Trap 1 | . . . 1 . . Miscellaneous 1 | . . 1 . . . Route ------- -11/Scrapyard -10/Materials (discovered 3 exits: [*Mat] / [*Min] / *Sub) -10/Subcaves -8/Materials (discovered 3 exits: *Fac x2 / Gar) -8/Garrison (discovered 3 exits: *Mat x3) -8/Materials History --------- Turn | Location | Event 13 | -11/Scrapyard | Discovered new exit (range 15) 5190 | -11/Scrapyard | Entered Materials 5191 | -10/Materials | Build established: Mutant 5389 | -10/Materials | Discovered new exit (range 14) 5510 | -10/Materials | Discovered new exit (range 15) 5593 | -10/Materials | Discovered new exit (range 12) 5784 | -10/Materials | Central database locked down 6198 | -10/Materials | Entered Subcaves 6339 | -10/Subcaves | Learned location of Mines (-10) 6582 | -10/Subcaves | Shifting Twisted Machinery released Flamer 7018 | -10/Subcaves | Ambushed by angry Subdweller bent on revenge 7023 | -10/Subcaves | Core integrity fell below 50% 7068 | -10/Subcaves | Shifting Twisted Machinery released Piercing Trap 7452 | -10/Subcaves | Shifting Twisted Machinery released Battle Rifle 7969 | -10/Subcaves | Shifting Twisted Machinery released Mak. Light Armor Plating 8048 | -10/Subcaves | Shifting Twisted Machinery released Sub. Optics 8332 | -10/Subcaves | A swath of the cavern ceiling suddenly collapsed 8655 | -10/Subcaves | A swath of the cavern ceiling suddenly collapsed 8905 | -10/Subcaves | Ambushed by Subdweller buried in earth 9178 | -10/Subcaves | Released subatomizers from SUBCON Basin 9907 | -10/Subcaves | Shifting Twisted Machinery released Scrap Shield 9919 | -10/Subcaves | Discovered new exit (range 9) 9985 | -10/Subcaves | Ambushed by angry Subdweller bent on revenge 9988 | -10/Subcaves | Core integrity fell below 20% 9988 | -10/Subcaves | Learned 2 Materials zone layouts 10001 | -10/Subcaves | Entered Materials 10001 | -8/Materials | Evolved 4 slots: Propulsion x1, Utility x3 10138 | -8/Materials | Repaired Broken Sub. Power Source 11041 | -8/Materials | Build established: Scavenger-Mutant 11165 | -8/Materials | Discovered new exit (range 16) 11181 | -8/Materials | Identified exit to Factory 11304 | -8/Materials | Discovered exit to Factory (range 10) 11307 | -8/Materials | Identified exit to Garrison 11344 | -8/Materials | Entered Garrison 11397 | -8/Garrison | Build established: Mutant 11416 | -8/Garrison | Triggered checkpoint 11451 | -8/Garrison | Garrison Relay disabled 11605 | -8/Garrison | Core integrity fell below 50% 11714 | -8/Garrison | Discovered new exit (range 10) 11723 | -8/Garrison | Identified exit to Materials 11740 | -8/Garrison | Triggered checkpoint 11756 | -8/Garrison | Garrison Relay disabled 11854 | -8/Garrison | Triggered checkpoint 11857 | -8/Garrison | Triggered checkpoint 11917 | -8/Garrison | Destroyed 9 combat bots 11917 | -8/Garrison | Lost 4 parts (1p2n1w) 12033 | -8/Garrison | Discovered exit to Materials (range 10) 12135 | -8/Garrison | Discovered exit to Materials (range 14) 12206 | -8/Garrison | Triggered checkpoint 12207 | -8/Garrison | Core integrity fell below 20% 12233 | -8/Garrison | Garrison Relay disabled 12302 | -8/Garrison | Triggered checkpoint 12519 | -8/Garrison | Lost 4 parts (2n1u1w) 12690 | -8/Garrison | Build established: Scavenger-Mutant 12709 | -8/Garrison | Entered Materials 12709 | -8/Materials | Accompanied by 3 allies 12749 | -8/Materials | Garrison activated, responded to threat 12941 | -8/Materials | Destroyed by Y-45 Defender with Heavy Assault Rifle Last Messages --------------- System. 12877_ Beam Rifle destroyed. 12880_ R-06 Scavenger inserts Lgt. Ion Engine into recycling unit. 12881_ Recycling unit begins recycling process. 12884_ Penetrated by Slug. 12884_ Slug penetrates Wall. 12888_ Connecting with Terminal... 12894_ ALERT: Suspicious activity at Terminal M011. Dispatching Investigation squad. 12896_ K-01 Serf collects debris. 12911_ W-25 Informer sends out distress signal. 12926_ Connecting with Terminal... >>Trojan(Botnet) Trojan loaded successfully. Testing... Terminal linked with 0 systems. Awaiting botnet instructions. 12938_ Y-45 Defender suffers critical hit (Burn). Map ----- +----------------------------------------------------+ | # #?????????# """ #??????????????????? | | # #?????????# """ #??????????????????? | | # #?????????# #??????????????????? | | # #?????????# #??????????????????? | | # ########??# !!! #??????????????????? | | #??# !! #######+##?????????? | | #### !! ##????????? | | ! ] ????????? | | ?? ????? | | ?? #???? | | ################### ######?# ?? #???? | | ??????????????????# #??????# """ #???? | | ??????????????????# #??????+ """ #???? | | ??????????????????# #??????# """ #???? | | ??????????????????# #??????# #???? | | ??????????????????# #??????# #???? | | ??????????????????# #??????# """ #???? | | ??????????????????# #??#+#?# """ #???? | | ??????????????????# #??# #?# """ #???? | | ?????????????###+## #### ### #???? | | ?????????????+ #???? | | ?????????????# #???? | | ?????????????########+############ #???? | | ?????????????????# ########### #???? | | ?????????????????#""" # "T" # #???? | | ?????????????????#""" #@ + #???? | | ?????????????????#""" Y # #???? | | ?????????????????# # """ """ # #???? | | ?????????????????# # """ """ #####???? | | ?????????????????######## """ """ #???????? | | ????????????????????????# #???????? | | ????????????????????????# #???????? | | ????????????????????????###########???????? | | ??????????????????????????????????????????? | | | | | | | | | | | | | | | | | | | | | | | | | | | | | | | | | +----------------------------------------------------+ Best States ------------- Heat Dissipation 69 Coolant Potential 50 Energy Generation 15 Energy Capacity 265 Matter Stores 300 Matter Capacity 300 Sight Range 16 Robot Scan Range 15 Terrain Scan Range 16 Terrain Scan Density 10 ECM Strength 1 Base Temperature (-) 100 Armor Coverage 1025 Evasion (%) 54 Recoil Reduction 2 Offensive Hacking 10 Authchip Count 2 Item Schematics ----------------- None Robot Schematics ------------------ None Fabricated ------------ Nothing Repaired ---------- Sub. Power Source | 78% | -8/Materials | Broken Studied --------- Particle Cannon | -8/Materials | Hacked Alien Tech Used ----------------- None Achievements -------------- Art Critic DIY Cooler Do Not Disturb Challenges ------------ None Game ------ Seed AntimatterFlakClaymores Manual? 0 Play Time 01:30:53 Cumulative 39.3 hours Start 2026.02.14 @ 14:48:01 End 2026.02.14 @ 16:27:55 Sessions 1 Manual Loads 0 Difficulty Rogue Special Mode None Game No. 41 Rogue 41 Adventurer 0 Explorer 0 Win Type - Total 0 Types 0/0/0/0/0/0/0/0/0/0 Lore% 21 Gallery% 26 Achievement% 19 Wizard Run 0 Options --------- Layout 1 ASCII 0 Keyboard 0 Movement Mouse Keybinds 0 Fullscreen 1 Font 24/Smallcaps Map View 50x35 Zoom Use 0% Tactical HUD 1 Map Filters NONE Filters NONE Steam 1 RUN: 4c1a3c8d-c4e0-4e76-94b1-b03f05023712